Cogmind - Beta 14 @@@ ROGUE MODE // 2024.09.25 @ 15:40:41 Player: Minty Result: Destroyed by Triborg with Siege Cannon Performance ------------- Evolutions (1) 500 Regions Visited (6) 1200 Robots Destroyed (65) 325 Value Destroyed (1625) 1625 Prototype IDs (6) 120 Alien Tech Used (0) 0 Bonus (-364) -364 TOTAL SCORE: 3406 Bonus ------- High Alert Combat Kills 57 Friendly Fire -421 Cogmind --------- Core Integrity 0/400 Matter 219/300 Energy 100/100 System Corruption 0% Temperature Warm (187) Movement Core (700) Ox13 Location -9/Scraptown Parts ------- > --- POWER (1) -------- (None) > --- PROPULSION (2) --- (None) > --- UTILITY (2) ------ High-capacity Storage Unit > --- WEAPON (4) ------- (None) > --- INVENTORY (20) --- Improved Heat Sink Improved Heat Sink Large Storage Unit Sensor Array Seismic Detector Seismic Detector Improved Targeting Computer Improved Targeting Computer Improved Targeting Computer Core Shielding Medium Armor Plating Hardened Light Armor Plating Hacking Suite Tractor Beam Particle Cannon Advanced Beam Cannon Advanced Beam Cannon Grenade Launcher CPS Tube (2) CPS Tube (1) Peak State ------------ > --- POWER ------------ Improved Ion Engine > --- PROPULSION ------- Compact Wheel Armored Wheel > --- UTILITY ---------- Improved Heat Sink High-capacity Storage Unit > --- WEAPON ----------- Improved EM Shotgun Advanced Beam Cannon Advanced Beam Cannon Advanced Beam Cannon > --- INVENTORY -------- Ion Engine Improved Ion Engine Improved Ion Engine Improved Heat Sink Small Storage Unit Medium Storage Unit Large Storage Unit Sensor Array Seismic Detector Seismic Detector Improved Targeting Computer Improved Targeting Computer Improved Targeting Computer Core Shielding Light Armor Plating Tractor Beam Grenade Launcher Grenade Launcher Rocket Launcher Mini Grenade Launcher [Rating: 23] Favorites ----------- Power Improved Ion Engine Engine Improved Ion Engine Propulsion Compact Wheel Leg Aluminum Leg Wheel Compact Wheel Utility High-capacity Storage Unit Device Improved Heat Sink Storage High-capacity Storage Unit Protection Light Armor Plating Weapon Advanced Beam Cannon Energy Gun Particle Gun Energy Cannon Advanced Beam Cannon Ballistic Gun Light Assault Rifle Launcher Grenade Launcher Special Weapon CPS Tube Build | -11 -10 -10 -9 -9 -9 -9 ------- Run | Yrd Mat Min Mat Sto Rec Scr Slots Evolved 2 | . . . 2 . . . Power . | . . . . . . . Propulsion . | . . . . . . . Utility . | . . . . . . . Weapon 2 | . . . 2 . . . Parts Attached 48 | . 15 1 9 12 1 10 Power 5 | . 3 . 1 . 1 . Engine 5 | . 3 . 1 . 1 . Core . | . . . . . . . Reactor . | . . . . . . . Propulsion 9 | . 2 1 2 4 . . Treads . | . . . . . . . Leg . | . . . . . . . Wheel 9 | . 2 1 2 4 . . Hover . | . . . . . . . Flight . | . . . . . . . Utility 6 | . 5 . . . . 1 Device 1 | . 1 . . . . . Storage 2 | . 2 . . . . . Processor . | . . . . . . . Hackware . | . . . . . . . Protection 3 | . 2 . . . . 1 Artifact . | . . . . . . . Weapon 28 | . 5 . 6 8 . 9 Energy Gun 9 | . 3 . 4 2 . . Energy Cannon 12 | . . . 1 6 . 5 Ballistic Gun 1 | . 1 . . . . . Ballistic Cannon . | . . . . . . . Launcher 5 | . 1 . 1 . . 3 Special Weapon 1 | . . . . . . 1 Impact Weapon . | . . . . . . . Slashing Weapon . | . . . . . . . Piercing Weapon . | . . . . . . . Special Melee Weapon . | . . . . . . . Unidentified Prototypes 2 | . . . . 2 . . Parts Lost 14 | . 3 . 2 1 . 8 Power 2 | . 1 . . . . 1 Propulsion 3 | . . . 1 . . 2 Utility 2 | . 1 . . . . 1 Weapon 7 | . 1 . 1 1 . 4 Highest Loss Streak 8 | . 3 . 1 1 . 8 To Critical Strikes . | . . . . . . . Average Slot Usage (%) 95 | . 94 100 90 99 89 97 Engine 11 | . 13 14 11 11 11 10 Leg 1 | . 5 . . . . . Wheel 21 | . 22 28 18 22 22 21 Device 8 | . 2 14 11 11 11 10 Storage 11 | . 14 14 11 11 11 11 Protection 1 | . 7 . . . . . Energy Gun 13 | . 6 28 37 17 . . Energy Cannon 17 | . . . . 26 33 41 Ballistic Gun 5 | . 21 . . . . . Peak Build Rating 23 | . 12 12 18 23 23 23 Average Rating 16 | . 8 12 15 20 20 21 On Entrance 12 | 6 6 12 12 16 23 11 Naked Turns . | . . . . . . . Heaviest Build 64 | 10 51 51 59 64 64 64 Greatest Support 32 | 20 32 32 28 32 32 32 Greatest Overweight (x) 4 | . 1 1 4 3 1 1 Average Overweight (x) 1 | . . 1 2 1 1 1 Largest Inventory Capacity 20 | . 20 20 20 20 20 20 Average Capacity 19 | . 18 20 20 20 20 20 Most Carried 20 | . 20 20 20 20 20 20 Average Carried 18 | . 15 19 19 19 19 19 Final Capacity 20 | 8 20 20 20 20 20 20 Final Carried 20 | 6 20 20 20 20 20 20 Class Distribution -------------------- 33% | Gunner 32% | Mutant 21% | Commander-Gunner 5% | Scavenger-Gunner 4% | Scavenger-Mutant 3% | Commander-Mutant Dominant Class ---------------- Mutant | -10/Materials Scavenger-Mutant | -10/Mines Mutant | -9/Materials Gunner | -9/Storage Commander-Gunner | -9/Recycling Commander-Gunner | -9/Scraptown Resources | -11 -10 -10 -9 -9 -9 -9 ----------- Run | Yrd Mat Min Mat Sto Rec Scr Matter Collected 779 | 176 259 20 100 147 20 57 Remotely . | . . . . . . . Salvage Created 2454 | . 354 12 423 1148 384 133 Parts 136 | . 25 3 22 56 18 12 Haulers Intercepted 4 | . . . . 4 . . Recyclers Shooed 3 | . 3 . . . . . Parts Field Recycled . | . . . . . . . Retrieved Matter . | . . . . . . . Parts Self-Destructed . | . . . . . . . Prevented . | . . . . . . . Kills | -11 -10 -10 -9 -9 -9 -9 ------- Run | Yrd Mat Min Mat Sto Rec Scr Combat Hostiles Destroyed 46 | . 12 . 11 15 5 3 Guns 24 | . 10 . 8 6 . . Cannons 14 | . . . 1 8 5 . AOE 7 | . 2 . 2 . . 3 Classes Destroyed 15 | . 3 1 2 5 . 4 Worker 3 | . 1 . 1 . 1 . Builder 2 | . . . 1 1 . . Tunneler 2 | . . 1 . . . 1 Hauler 4 | . . . . 4 . . Recycler 4 | . . . . 2 2 . Operator 1 | . . . . 1 . . Watcher 1 | . . . . 1 . . Swarmer 10 | . 6 . 3 . 1 . Grunt 21 | . 6 . 4 9 2 . Duelist 2 | . . . . 1 1 . Protector 2 | . . . . . . 2 Sentry 10 | . . . 4 5 1 . Federalist 1 | . . . . . . 1 Explorer 1 | . . . . . . 1 Scrapper 1 | . . . . . . 1 Best Kill Streak 8 | . 8 1 5 7 5 3 Combat Bots Only 8 | . 8 . 4 3 4 3 Max Kills in Single Turn 2 | . 2 1 2 2 2 2 Gunslinging . | . . . . . . . Exploded 2 | . 2 . 2 . . 2 Melee . | . . . . . . . Uniques/NPCs Destroyed . | . . . . . . . Combat | -11 -10 -10 -9 -9 -9 -9 -------- Run | Yrd Mat Min Mat Sto Rec Scr Hostile Shots Fired 177 | . 64 . 43 27 3 40 Missed 55 | . 20 . 16 7 1 11 Damage Taken 2364 | . 504 . 408 329 22 1101 Core 511 | . 90 . 28 60 . 333 Absorbed by Shields 79 | . . . . . . 79 Regen/Repaired (Parts) 81 | . . . 81 . . . Core Remaining (%) 82 | 100 . 64 . . . . Volleys Fired 106 | . 37 2 23 32 7 5 Largest 4 | . 2 2 4 4 4 4 Hottest 272 | . 115 115 231 272 272 272 Shots Fired 309 | . 72 4 65 124 27 17 Gun 190 | . 71 4 61 54 . . Cannon 109 | . . . 2 70 27 10 Launcher 9 | . 1 . 2 . . 6 Special 1 | . . . . . . 1 Kinetic 58 | . 58 . . . . . Thermal 221 | . 13 4 54 113 27 10 Explosive 9 | . 1 . 2 . . 6 Electromagnetic 20 | . . . 9 11 . . Robot Hit Streak 19 | . 14 11 9 19 12 6 Robot Miss Streak 4 | . 3 2 4 4 2 1 Penetration Max . | . . . . . . . Secondary Targets 1 | . . . 1 . . . Max Gunslinging Chain 1 | . . . 1 . . . Shots Hit Robots 173 | . 49 2 40 58 11 13 Core Hits 99 | . 24 1 21 30 9 14 Critical Kills . | . . . . . . . Critical Parts Destroyed . | . . . . . . . Critical Strikes 8 | . . . 2 6 . . Burn 7 | . . . 2 5 . . Corrupt 1 | . . . . 1 . . Melee Attacks . | . . . . . . . Impact . | . . . . . . . Slashing . | . . . . . . . Piercing . | . . . . . . . Sneak Attacks . | . . . . . . . Combat Hostiles . | . . . . . . . Follow-up Attacks . | . . . . . . . Damage Inflicted 3514 | . 662 29 725 1102 400 596 Guns 1608 | . 516 29 560 503 . . Cannons 1222 | . . . 18 599 400 205 Explosions 684 | . 146 . 147 . . 391 Melee . | . . . . . . . Ramming . | . . . . . . . Kinetic 374 | . 374 . . . . . Thermal 2276 | . 142 29 546 954 400 205 Explosive 684 | . 146 . 147 . . 391 Electromagnetic 180 | . . . 32 148 . . Impact . | . . . . . . . Slashing . | . . . . . . . Piercing . | . . . . . . . Highest Corruption 4 | . . . . 4 4 . Average Corruption 3 | . . . . 3 4 . Corruption Purged . | . . . . . . . Corruption Blocked . | . . . . . . . Effects 12 | . . . . 4 8 . Message Errors 4 | . . . . . 4 . Matter Fused 3 | . . . . 2 1 . Energy Discharges 2 | . . . . 1 1 . Parts Fused 1 | . . . . . 1 . Data Loss (minor) 1 | . . . . 1 . . Weapon Failures 1 | . . . . . 1 . Overload Shots . | . . . . . . . Overflow Damage 42 | . . . . . 4 38 Projectiles 9 | . . . . . 4 5 Explosions 33 | . . . . . . 33 Melee . | . . . . . . . Knockbacks . | . . . . . . . Impact . | . . . . . . . Kinetic . | . . . . . . . Secondary . | . . . . . . . Self-Inflicted Damage 145 | . 11 . 22 . . 112 Shots 5 | . 1 . 1 . . 3 Rammed . | . . . . . . . Targets Rammed . | . . . . . . . Kicked . | . . . . . . . Crushed . | . . . . . . . Highest Temperature 528 | . 94 24 476 528 306 310 Average Temperature 144 | . 28 14 173 183 113 177 Received Heat Transfer 634 | . 252 . 159 105 12 106 Effects 10 | . . . 4 4 1 1 Shutdowns 3 | . . . 1 2 . . Energy Bleed 3 | . . . 1 . 1 1 Matter Decay 1 | . . . . 1 . . Short Circuit 1 | . . . 1 . . . Damage (minor) 2 | . . . 1 1 . . Siege Activations . | . . . . . . . Robots Corrupted . | . . . . . . . Combat Hostiles . | . . . . . . . Parts Fried . | . . . . . . . Impact Corruptions . | . . . . . . . Robots Melted 1 | . . . . 1 . . Combat Hostiles 1 | . . . . 1 . . Parts Melted 11 | . . . 4 6 1 . Heat Transferred 5449 | . 407 74 1517 2405 703 343 Parts Sabotaged . | . . . . . . . Parts Stolen . | . . . . . . . Parts Stripped . | . . . . . . . Power Chain Reactions . | . . . . . . . Alert | -11 -10 -10 -9 -9 -9 -9 ------- Run | Yrd Mat Min Mat Sto Rec Scr Peak Influence 533 | . 259 105 245 533 285 . Initial 170 | . . 100 40 103 170 . Average 195 | . 97 104 109 334 269 . Maximum Alert Level 2 | . 1 . 1 2 1 . Low Security (%) 54 | . 79 100 95 18 9 . Level 1 34 | . 20 . 4 44 90 . Level 2 10 | . . . . 37 . . Level 3 . | . . . . . . . Level 4 . | . . . . . . . Level 5 . | . . . . . . . High Security . | . . . . . . . Max Security . | . . . . . . . Squads Dispatched 6 | . 2 . 1 3 . . Investigation 5 | . 2 . 1 2 . . Extermination . | . . . . . . . Reinforcement 1 | . . . . 1 . . Assault . | . . . . . . . Garrison . | . . . . . . . Intercept . | . . . . . . . Searches Triggered . | . . . . . . . Construction Impeded . | . . . . . . . Haulers Reinforced . | . . . . . . . Active Scanning Responses . | . . . . . . . Cargo Convoy Interrupts . | . . . . . . . Stealth | -11 -10 -10 -9 -9 -9 -9 --------- Run | Yrd Mat Min Mat Sto Rec Scr Distress Signals 3 | . 1 . . 2 . . Communications Jammed . | . . . . . . . Distress Signals . | . . . . . . . Times Spotted 50 | . 14 . 10 17 1 8 Peak Tracking Total 6 | . 6 . 4 3 1 6 Tactical Retreats . | . . . . . . . Traps | -11 -10 -10 -9 -9 -9 -9 ------- Run | Yrd Mat Min Mat Sto Rec Scr Traps Triggered 3 | . . . . 3 . . Indirectly . | . . . . . . . Trap Hack Attempts . | . . . . . . . Triggered . | . . . . . . . Disarmed 1 | . . . . 1 . . Reprogrammed . | . . . . . . . Reused . | . . . . . . . Traps Extracted . | . . . . . . . Installed . | . . . . . . . Triggered . | . . . . . . . Machines | -11 -10 -10 -9 -9 -9 -9 ---------- Run | Yrd Mat Min Mat Sto Rec Scr Machines Disabled 1 | . . . 1 . . . Max in Single Turn 1 | . . . 1 . . . Machines Repaired . | . . . . . . . Machines Dismantled . | . . . . . . . Machines Sabotaged . | . . . . . . . Overloaded Fab Kills . | . . . . . . . Hacking | -11 -10 -10 -9 -9 -9 -9 --------- Run | Yrd Mat Min Mat Sto Rec Scr Machines Accessed 16 | . 7 . 3 3 3 . Terminals 10 | . 5 . 1 3 1 . Fabricators . | . . . . . . . Repair Stations 2 | . 1 . 1 . . . Recycling Units 4 | . 1 . 1 . 2 . Scanalyzers . | . . . . . . . Garrison Access . | . . . . . . . Total Hacks 55 | . 26 . 11 12 6 . Successful 29 | . 14 . 8 4 3 . Failed 26 | . 12 . 3 8 3 . Catastrophic 3 | . 2 . . 1 . . Database Lockouts . | . . . . . . . Manual 20 | . 13 . 2 4 1 . Terminals 42 | . 20 . 6 12 4 . Fabricators . | . . . . . . . Repair Stations 7 | . 4 . 3 . . . Recycling Units 6 | . 2 . 2 . 2 . Scanalyzers . | . . . . . . . Garrison Access . | . . . . . . . Terminal Hacks 18 | . 10 . 3 4 1 . Part Schematic 1 | . . . . 1 . . Robot Analysis 1 | . 1 . . . . . Prototype ID Bank 2 | . 2 . . . . . Branch Access Points 2 | . 1 . 1 . . . Emergency Access Points 2 | . 2 . . . . . Alert Level 3 | . 1 . . 1 1 . Unreport Threat 2 | . . . 2 . . . Locate Traps 3 | . 2 . . 1 . . Disarm Traps 1 | . . . . 1 . . Hauler Manifests 1 | . 1 . . . . . Fabricator Hacks . | . . . . . . . Repair Station Hacks 4 | . 2 . 2 . . . Scan Component 3 | . 2 . 1 . . . Repair 1 | . . . 1 . . . Recycling Unit Hacks 6 | . 2 . 2 . 2 . Report Inventory 4 | . 1 . 1 . 2 . Retrieve Components 2 | . 1 . 1 . . . Scanalyzer . | . . . . . . . Garrison Access Hacks . | . . . . . . . Unauthorized Hacks 1 | . . . 1 . . . Terminals . | . . . . . . . Fabricators . | . . . . . . . Repair Stations 1 | . . . 1 . . . Patch 1 | . . . 1 . . . Recycling Units . | . . . . . . . Scanalyzers . | . . . . . . . Garrison Access . | . . . . . . . Data Cores Recovered . | . . . . . . . Used . | . . . . . . . Hacking Detections 14 | . 6 . 2 4 2 . Full Trace Events 8 | . 4 . . 3 1 . Feedback Events . | . . . . . . . Feedback Blocked . | . . . . . . . Robot Schematics Acquired . | . . . . . . . Robots Built . | . . . . . . . Authchips . | . . . . . . . Time . | . . . . . . . Total Robot Build Rating . | . . . . . . . Part Schematics Acquired 1 | . . . . 1 . . Parts Built . | . . . . . . . Authchips . | . . . . . . . Time . | . . . . . . . Total Part Build Rating . | . . . . . . . Parts Repaired 1 | . . . 1 . . . Time 36 | . . . 36 . . . Parts Recycled . | . . . . . . . Recycled Matter . | . . . . . . . Retrieved Matter . | . . . . . . . Retrieved Components 6 | . 3 . 3 . . . Parts Scanalyzed . | . . . . . . . Part Schematics Acquired . | . . . . . . . Parts Damaged . | . . . . . . . Bothacking | -11 -10 -10 -9 -9 -9 -9 ------------ Run | Yrd Mat Min Mat Sto Rec Scr Used RIF Installer . | . . . . . . . Robots Hacked . | . . . . . . . Non-combat . | . . . . . . . Combat . | . . . . . . . Robot Hacks Applied . | . . . . . . . Relay Couplers Released . | . . . . . . . Fabnet Peak Effective % . | . . . . . . . Robots Rewired 7 | . . . . . 7 . Allies Hacked . | . . . . . . . Hacks Repelled . | . . . . . . . Allies | -11 -10 -10 -9 -9 -9 -9 -------- Run | Yrd Mat Min Mat Sto Rec Scr Total Allies 7 | . . . . . 7 . Largest Group 7 | . . . . . 7 7 Highest-Rated Group 98 | . . . . . 98 98 Highest-Rated Ally 27 | . . . . . 27 27 Total Orders . | . . . . . . . Ally Attacks 6 | . . . . . . 6 Total Damage 54 | . . . . . . 54 Kills . | . . . . . . . Allies Corrupted . | . . . . . . . Allies Melted . | . . . . . . . Intel | -11 -10 -10 -9 -9 -9 -9 ------- Run | Yrd Mat Min Mat Sto Rec Scr Robot Analysis Total 1 | . 1 . . . . . Derelict Logs Recovered . | . . . . . . . Drone Launches . | . . . . . . . Drone Recoveries . | . . . . . . . Exploration | -11 -10 -10 -9 -9 -9 -9 ------------- Run | Yrd Mat Min Mat Sto Rec Scr Turns Passed 2471 | . 602 160 373 568 369 399 Spaces Moved 1568 | 1 392 138 192 345 184 316 Core . | . . . . . . . Treads . | . . . . . . . Legs 58 | 1 57 . . . . . Wheels 1510 | . 335 138 192 345 184 316 Hover . | . . . . . . . Flight . | . . . . . . . Fastest Speed 100 | 120 100 105 110 115 115 115 Average Speed 118 | 120 117 107 127 122 115 115 Slowest Speed 190 | 120 190 115 150 145 115 115 Overloaded Moves . | . . . . . . . Propulsion Burnouts . | . . . . . . . Robots Hopped . | . . . . . . . Cave-ins Triggered . | . . . . . . . Exploration Rate (%) 36 | 2 62 46 25 62 31 30 Regions Visited 6 Branch Regions 4 Pre-discovered Areas . | . . . . . . . Known Exits Taken 2 | . 1 . 1 . . . Unknown Exits Taken 4 | 1 . 1 . 1 1 . Scrap Searched 3 | . . 1 . . . 2 Spaces Dug . | . . . . . . . Terrain Destroyed 25 | . 6 . 19 . . . Melee . | . . . . . . . Projectile . | . . . . . . . AOE 25 | . 6 . 19 . . . Terrain Rammed . | . . . . . . . Walls Destroyed . | . . . . . . . Machines Disabled . | . . . . . . . Actions | -11 -10 -10 -9 -9 -9 -9 --------- Run | Yrd Mat Min Mat Sto Rec Scr Total 1964 | . 465 146 278 409 328 338 Wait 97 | . 1 2 37 10 47 . Move 1562 | . 391 137 191 344 183 316 Hop . | . . . . . . . Pick Up 36 | . 15 2 8 5 1 5 Fast Attach 10 | . 4 . 2 3 . 1 Attach 9 | . 2 . 3 1 . 3 Detach 7 | . 2 . 1 . 4 . Swap 29 | . 9 1 4 8 1 6 Drop 27 | . 4 2 9 6 4 2 Fire 106 | . 37 2 23 32 7 5 Melee . | . . . . . . . Ram . | . . . . . . . Kick . | . . . . . . . Crush . | . . . . . . . Escape Stasis . | . . . . . . . Rewire 81 | . . . . . 81 . Trap . | . . . . . . . Miscellaneous . | . . . . . . . Route ------- -11/Scrapyard -10/Materials (discovered 3 exits: *Mat x2 / *Min) -10/Mines -9/Materials (discovered 2 exits: *Min / *Sto) -9/Storage (discovered 2 exits: [*Mat] / *Rec) -9/Recycling (discovered 2 exits: [*Fac] / [*Scr]) -9/Scraptown History --------- Turn | Location | Event 1 | -11/Scrapyard | Discovered new exit (range 0) 1 | -11/Scrapyard | Entered Materials 126 | -10/Materials | Discovered new exit (range 12) 173 | -10/Materials | Identified exit to Mines 316 | -10/Materials | Build established: Mutant 505 | -10/Materials | Destroyed 8 combat bots 513 | -10/Materials | Lost 3 parts (1p1u1w) 551 | -10/Materials | Discovered new exit (range 8) 603 | -10/Materials | Entered Mines 610 | -10/Mines | Received a Rocket Launcher from a helpful Derelict 719 | -10/Mines | Discovered new exit (range 12) 763 | -10/Mines | Entered Materials 763 | -9/Materials | Evolved 2 slots: Weapon x2 906 | -9/Materials | Identified exit to Mines 906 | -9/Materials | Identified exit to Storage 1108 | -9/Materials | Repaired Broken Med. Laser 1136 | -9/Materials | Entered Storage 1415 | -9/Storage | Build established: Gunner 1488 | -9/Storage | Discovered new exit (range 15) 1699 | -9/Storage | Used back door to open Recycling access 1699 | -9/Storage | Discovered new exit (range 5) 1704 | -9/Storage | Entered Recycling 1955 | -9/Recycling | Discovered new exit (range 5) 1991 | -9/Recycling | Scanned before Scraplab entrance 2008 | -9/Recycling | Entered Scraplab 2017 | -9/Recycling | Discovered new exit (range 2) 2073 | -9/Recycling | Entered Scraptown 2073 | -9/Scraptown | Accompanied by 7 allies 2073 | -9/Scraptown | System corruption cleaned by C-Scrubber 2316 | -9/Scraptown | Visited UFD Registry 2331 | -9/Scraptown | Visited Science Testing Area 2366 | -9/Scraptown | Visited Supply Room 2373 | -9/Scraptown | Visited Fellowship of the Rings 2384 | -9/Scraptown | Build established: Commander-Gunner 2389 | -9/Scraptown | Visited TADAMA 2398 | -9/Scraptown | Visited CPS Storage 2449 | -9/Scraptown | Attacked by Scraptown defenders 2465 | -9/Scraptown | Core integrity fell below 50% 2471 | -9/Scraptown | Core integrity fell below 20% 2472 | -9/Scraptown | Destroyed by Triborg with Siege Cannon Last Messages --------------- 02464_ Penetrated by Siege Slug. 02466_ Imp. Ion Engine destroyed. 02466_ Knocked back. 02466_ Rocket Launcher destroyed. 02466_ Destroyed Rocket Launcher. 02468_ Penetrated by Siege Slug. 02468_ Imp. Medium Armor Plating destroyed. 02468_ Siege Slug penetrates UFD HQ Gate. 02469_ Destroyed Lgt. Ion Engine. 02469_ N4-G6W(j) destroyed. 02469_ Destroyed VSS Leg. 02469_ Destroyed Imp. Terrain Scanner. 02469_ KV-NJ8(x) destroyed. 02470_ Penetrated by Siege Slug. 02470_ Grenade Launcher destroyed. 02470_ Mni. Grenade Launcher destroyed. 02470_ Penetrated by Siege Slug. 02470_ Penetrated by Bolt. 02472_ Penetrated by Siege Slug. 02472_ Com. Wheel destroyed. Map ----- +----------------------------------------------------+ | #????# #????????????????????????????????? | | ??????? #????????????????????????????????? | | ?????????? #????????????????????????????????? | | ???????????? #????????????????????????????????? | | ############## ####??????????????????????????????? | | #??????????????????????????????? | | #??????????????????????????????? | | #??????????????????????????????? | | #??????????????????????????????? | | #??????????????????????????????? | | ######### #??????????????????????????????? | | #?????# #??????????????????????????????? | | #?????# #??????????????????????????????? | | #?????# #??????????????"???????????????? | | #?????# #???????????? ""??????????????? | | #?????# #??????????? ""??????????????? | | #?????# ###????????? ""??????????????? | | #?????# ""#"#?????? ""??????????????? | | #?????# """"#?????? ""??????????????? | | #?????# ""###????? ""??????????????? | | ###?????# ###??????? "" ?????????????? | | ????????# #####????" ""#?????????????? | | ????????# "???? ""#?????????????? | | ????????# = "??? ""#?????????????? | | ????????# """" #?????????????? | | ????????# [%%/@% ""#?????????????? | | ######### TT = g """" ""#?????????????? | | TT%|%%% "??? """?????????????? | | *=[%* "???? """?????????????? | | !%=! ???? ????????????? | | ""???? ???????????? | | "????? z ??????????? | | #"?????? ??????????? | | #??????? h ???????????? | | #????????""" """"???????????? | | #### ########## ####????????### ##?????????????? | | ??#" ???????# #??????????????? ??????????????? | | ??#" ??????# #??????????????????????????????? | | ??#" ?????# #??????????????????????????????? | | ??#" """ ???# #??????????????????????????????? | | ??#" """ "??# #??????????????????????????????? | | ??#" """ "#?# #??????????????????????????????? | | ???" "#?# #??????????????????????????????? | | ???" ???"??# #??????????????????????????????? | | ???"""""??????# #??????????????????????????????? | | ????####??????# #??????????????????????????????? | | ??????????????# #??????????????????????????????? | | ?????????###### #??????????????????????????????? | | ???????"""""""" #??????????????????????????????? | | ??????""" """"" #??????????????????????????????? | +----------------------------------------------------+ Best States ------------- Heat Dissipation 42 Energy Generation 12 Energy Capacity 265 Matter Stores 300 Matter Capacity 300 Sight Range 16 Terrain Scan Density 10 Armor Coverage 150 Evasion (%) 55 Item Schematics ----------------- Gauss Cannon | -9/Storage | Hacked Robot Schematics ------------------ None Fabricated ------------ Nothing Alien Tech Used ----------------- None Achievements -------------- None Challenges ------------ None Game ------ Seed FissionChromaticExtrapolator Manual? 0 Play Time 00:17:36 Cumulative 947.5 hours Start 2024.09.25 @ 14:15:18 End 2024.09.25 @ 15:40:41 Sessions 3 Manual Loads 0 Difficulty Rogue Special Mode None Game No. 1157 Rogue 877 Adventurer 124 Explorer 156 Win Type - Total 41 Types 28/0/8/3/1/0/0/1/0 Lore% 83 Gallery% 90 Achievement% 78 Wizard Run 0 Options --------- Layout 0 ASCII 0 Keyboard 1 Movement Numpad Keybinds 0 Fullscreen 2 Font 18/X11 Map View 76x50 Zoom Use 0% Tactical HUD 1 Map Filters NONE Filters NONE Steam 1 RUN: c11d1471-55be-4514-be57-684da5d7e153